Workbook

Sheet Sheet1
B1: The Pendulum and
B2: Simple Harmonic Motion
B4: This DIGMath program lets you
B5: investigate the motion of a simple pendulum
B6: based on the 2nd order differential equation
C7: q'' =g/L sin(q)
B8: with initial condition q(0) = q0
B9: extending from t = 0 to t = tMax.
A11: What is the length L (in feet, 0.5 - 10) of the pendulum?
C12: =E12/10 -> 5.4 | E12: 54
A14: What is the initial angle q0 ( -6° to +6°)?
C15: =E15/2-6 -> 5 | E15: 22
H17: Trace a point along the path of the pendulum
A18: To what value of t should the solution extend? | H18: t = | I18: =K18*dt -> 10.96 | K18: 274
C19: tMax = | D19: 20 | I19: q = | J19: =LOOKUP(t0+0.001,Sheet2!C3:C503,Sheet2!D3:D503) -> 0.07 | K19: radians = | L19: =180/PI()*J19 -> 3.76 | M19: °
C20: =IF(b<=0,"That must be larger than 0","") ->  | I20: x = | J20: =LOOKUP(t0+0.001,Sheet2!C3:C503,Sheet2!E3:E503) -> 0.35
I21: y = | J21: =LOOKUP(t0+0.001,Sheet2!C3:C503,Sheet2!F3:F503) -> -5.39
A23: Click each item below for suggestions and investigations
B24: Item 1
B25: Item 2
B26: Item 3
B27: Item 4
A31: To access/download all the DIGMath Apps for Calculus
A32: Click this link: | C32: DIGMath for Calculus
A34: Created by: Sheldon P. Gordon
A35: Farmingdale State College
A36: Development of this module was supported by the
A37: NSF's Division of Undergraduate Education
A38: under grants DUE-0310123 and DUE-0442160.

Sheet Sheet2
E1: Taylor - linear
C2: t | D2: q(t) | E2: x | F2: y | G2: Plotting q | H2: Plotting x | I2: Plotting y
C3: =0 -> 0 | D3: =qq0 -> 0.0872664626 | E3: =L*SIN(D3) -> 0.4706410108 | F3: =-L*COS(D3) -> -5.37945137 | G3: =IF(ABS(qq0)<=0.10473,D3,#REF!) -> 0.0872664626 | H3: =IF(ABS(qq0)<0.1,E3,#REF!) -> 0.4706410108 | I3: =IF(ABS(qq0)<0.1,F3,#REF!) -> -5.37945137
A4: delta q = | B4: =b/2/PI()/SQRT(L/g)*qq0/500 -> 0.001352401377 | C4: =C3+dt -> 0.04 | D4: =IF(qq0>0,qq0-dq,qq0+dq) -> 0.08591406122 | E4: 0.4633654052 | F4: -5.380082946 | G4: =IF(ABS(qq0)<=0.10473,D4,#REF!) -> 0.08591406122 | H4: =IF(ABS(qq0)<=0.10473,E4,#REF!) -> 0.4633654052 | I4: =IF(ABS(qq0)<=0.10473,F4,#REF!) -> -5.380082946
C5: 0.08 | D5: =IF(qq0>0, IF(AND(D4>D3,D4+dq>qq0), D4-dq, IF( AND(D4>D3, D4+dq<=qq0), D4+dq, IF(AND(D4<D3,D4-dq<-qq0),D4+dq, D4 - dq)) ), IF(AND(D4>D3, D4+dq > -qq0), D4-dq, IF( AND(D4>D3, D4+dq< -qq0), D4+dq, IF(AND(D4<D3,D4-dq<=qq0), D4+dq, D4-dq ) ) ) ) -> 0.08456165985 | E5: 0.4560889521 | F5: -5.380704681 | G5: =IF(ABS(qq0)<=0.10473,D5,#REF!) -> 0.08456165985 | H5: =IF(ABS(qq0)<=0.10473,E5,#REF!) -> 0.4560889521 | I5: =IF(ABS(qq0)<=0.10473,F5,#REF!) -> -5.380704681
A6: delta t = | B6: =(b)/500 -> 0.04 | C6: 0.12 | D6: 0.08320925847 | E6: 0.4488116648 | F6: -5.381316576 | G6: =IF(ABS(qq0)<=0.10473,D6,#REF!) -> 0.08320925847 | H6: =IF(ABS(qq0)<=0.10473,E6,#REF!) -> 0.4488116648 | I6: =IF(ABS(qq0)<=0.10473,F6,#REF!) -> -5.381316576
C7: 0.16 | D7: 0.08185685709 | E7: 0.4415335567 | F7: -5.381918628 | G7: =IF(ABS(qq0)<=0.10473,D7,#REF!) -> 0.08185685709 | H7: =IF(ABS(qq0)<=0.10473,E7,#REF!) -> 0.4415335567 | I7: =IF(ABS(qq0)<=0.10473,F7,#REF!) -> -5.381918628
A8: initial angle in radians = | C8: 0.2 | D8: 0.08050445572 | E8: 0.4342546409 | F8: -5.382510837 | G8: =IF(ABS(qq0)<=0.10473,D8,#REF!) -> 0.08050445572 | H8: =IF(ABS(qq0)<=0.10473,E8,#REF!) -> 0.4342546409 | I8: =IF(ABS(qq0)<=0.10473,F8,#REF!) -> -5.382510837
B9: =q0*PI()/180 -> 0.087266 | C9: 0.24 | D9: 0.07915205434 | E9: 0.426974931 | F9: -5.383093201 | G9: =IF(ABS(qq0)<=0.10473,D9,#REF!) -> 0.07915205434 | H9: =IF(ABS(qq0)<=0.10473,E9,#REF!) -> 0.426974931 | I9: =IF(ABS(qq0)<=0.10473,F9,#REF!) -> -5.383093201
C10: 0.28 | D10: 0.07779965296 | E10: 0.4196944401 | F10: -5.383665719 | G10: =IF(ABS(qq0)<=0.10473,D10,#REF!) -> 0.07779965296 | H10: =IF(ABS(qq0)<=0.10473,E10,#REF!) -> 0.4196944401 | I10: =IF(ABS(qq0)<=0.10473,F10,#REF!) -> -5.383665719
C11: 0.32 | D11: 0.07644725159 | E11: 0.4124131815 | F11: -5.384228391 | G11: =IF(ABS(qq0)<=0.10473,D11,#REF!) -> 0.07644725159 | H11: =IF(ABS(qq0)<=0.10473,E11,#REF!) -> 0.4124131815 | I11: =IF(ABS(qq0)<=0.10473,F11,#REF!) -> -5.384228391
A12: xMin = | B12: =x0 -> 1 | C12: 0.36 | D12: 0.07509485021 | E12: 0.4051311687 | F12: -5.384781215 | G12: =IF(ABS(qq0)<=0.10473,D12,#REF!) -> 0.07509485021 | H12: =IF(ABS(qq0)<=0.10473,E12,#REF!) -> 0.4051311687 | I12: =IF(ABS(qq0)<=0.10473,F12,#REF!) -> -5.384781215
A13: xMin = | B13: 1 | C13: 0.4 | D13: 0.07374244883 | E13: 0.3978484149 | F13: -5.385324191 | G13: =IF(ABS(qq0)<=0.10473,D13,#REF!) -> 0.07374244883 | H13: =IF(ABS(qq0)<=0.10473,E13,#REF!) -> 0.3978484149 | I13: =IF(ABS(qq0)<=0.10473,F13,#REF!) -> -5.385324191
C14: 0.44 | D14: 0.07239004746 | E14: 0.3905649335 | F14: -5.385857316 | G14: =IF(ABS(qq0)<=0.10473,D14,#REF!) -> 0.07239004746 | H14: =IF(ABS(qq0)<=0.10473,E14,#REF!) -> 0.3905649335 | I14: =IF(ABS(qq0)<=0.10473,F14,#REF!) -> -5.385857316
A15: g = | B15: 32 | C15: 0.48 | D15: 0.07103764608 | E15: 0.3832807377 | F15: -5.386380591 | G15: =IF(ABS(qq0)<=0.10473,D15,#REF!) -> 0.07103764608 | H15: =IF(ABS(qq0)<=0.10473,E15,#REF!) -> 0.3832807377 | I15: =IF(ABS(qq0)<=0.10473,F15,#REF!) -> -5.386380591
C16: 0.52 | D16: 0.0696852447 | E16: 0.3759958409 | F16: -5.386894015 | G16: =IF(ABS(qq0)<=0.10473,D16,#REF!) -> 0.0696852447 | H16: =IF(ABS(qq0)<=0.10473,E16,#REF!) -> 0.3759958409 | I16: =IF(ABS(qq0)<=0.10473,F16,#REF!) -> -5.386894015
C17: 0.56 | D17: 0.06833284333 | E17: 0.3687102564 | F17: -5.387397586 | G17: =IF(ABS(qq0)<=0.10473,D17,#REF!) -> 0.06833284333 | H17: =IF(ABS(qq0)<=0.10473,E17,#REF!) -> 0.3687102564 | I17: =IF(ABS(qq0)<=0.10473,F17,#REF!) -> -5.387397586
A18: Pendulum | C18: 0.6 | D18: 0.06698044195 | E18: 0.3614239975 | F18: -5.387891303 | G18: =IF(ABS(qq0)<=0.10473,D18,#REF!) -> 0.06698044195 | H18: =IF(ABS(qq0)<=0.10473,E18,#REF!) -> 0.3614239975 | I18: =IF(ABS(qq0)<=0.10473,F18,#REF!) -> -5.387891303
A19: 0 | B19: 0 | C19: 0.64 | D19: 0.06562804057 | E19: 0.3541370776 | F19: -5.388375166 | G19: =IF(ABS(qq0)<=0.10473,D19,#REF!) -> 0.06562804057 | H19: =IF(ABS(qq0)<=0.10473,E19,#REF!) -> 0.3541370776 | I19: =IF(ABS(qq0)<=0.10473,F19,#REF!) -> -5.388375166
A20: =xx -> 0.3541370776 | B20: =yy -> -5.388375166 | C20: 0.68 | D20: 0.0642756392 | E20: 0.3468495099 | F20: -5.388849174 | G20: =IF(ABS(qq0)<=0.10473,D20,#REF!) -> 0.0642756392 | H20: =IF(ABS(qq0)<=0.10473,E20,#REF!) -> 0.3468495099 | I20: =IF(ABS(qq0)<=0.10473,F20,#REF!) -> -5.388849174
C21: 0.72 | D21: 0.06292323782 | E21: 0.3395613079 | F21: -5.389313325 | G21: =IF(ABS(qq0)<=0.10473,D21,#REF!) -> 0.06292323782 | H21: =IF(ABS(qq0)<=0.10473,E21,#REF!) -> 0.3395613079 | I21: =IF(ABS(qq0)<=0.10473,F21,#REF!) -> -5.389313325
C22: 0.76 | D22: 0.06157083645 | E22: 0.3322724849 | F22: -5.38976762 | G22: =IF(ABS(qq0)<=0.10473,D22,#REF!) -> 0.06157083645 | H22: =IF(ABS(qq0)<=0.10473,E22,#REF!) -> 0.3322724849 | I22: =IF(ABS(qq0)<=0.10473,F22,#REF!) -> -5.38976762
C23: 0.8 | D23: 0.06021843507 | E23: 0.3249830541 | F23: -5.390212057 | G23: =IF(ABS(qq0)<=0.10473,D23,#REF!) -> 0.06021843507 | H23: =IF(ABS(qq0)<=0.10473,E23,#REF!) -> 0.3249830541 | I23: =IF(ABS(qq0)<=0.10473,F23,#REF!) -> -5.390212057
C24: 0.84 | D24: 0.05886603369 | E24: 0.3176930289 | F24: -5.390646635 | G24: =IF(ABS(qq0)<=0.10473,D24,#REF!) -> 0.05886603369 | H24: =IF(ABS(qq0)<=0.10473,E24,#REF!) -> 0.3176930289 | I24: =IF(ABS(qq0)<=0.10473,F24,#REF!) -> -5.390646635
C25: 0.88 | D25: 0.05751363232 | E25: 0.3104024227 | F25: -5.391071353 | G25: =IF(ABS(qq0)<=0.10473,D25,#REF!) -> 0.05751363232 | H25: =IF(ABS(qq0)<=0.10473,E25,#REF!) -> 0.3104024227 | I25: =IF(ABS(qq0)<=0.10473,F25,#REF!) -> -5.391071353
A26: =MIN(#REF!) ->  | B26: =MIN(I3:I503) -> -5.399998895 | C26: 0.92 | D26: 0.05616123094 | E26: 0.3031112487 | F26: -5.391486212 | G26: =IF(ABS(qq0)<=0.10473,D26,#REF!) -> 0.05616123094 | H26: =IF(ABS(qq0)<=0.10473,E26,#REF!) -> 0.3031112487 | I26: =IF(ABS(qq0)<=0.10473,F26,#REF!) -> -5.391486212
A27: =MAX(#REF!) ->  | B27: =B26 -> -5.399998895 | C27: 0.96 | D27: 0.05480882956 | E27: 0.2958195204 | F27: -5.391891209 | G27: =IF(ABS(qq0)<=0.10473,D27,#REF!) -> 0.05480882956 | H27: =IF(ABS(qq0)<=0.10473,E27,#REF!) -> 0.2958195204 | I27: =IF(ABS(qq0)<=0.10473,F27,#REF!) -> -5.391891209
C28: 1 | D28: 0.05345642819 | E28: 0.288527251 | F28: -5.392286345 | G28: =IF(ABS(qq0)<=0.10473,D28,#REF!) -> 0.05345642819 | H28: =IF(ABS(qq0)<=0.10473,E28,#REF!) -> 0.288527251 | I28: =IF(ABS(qq0)<=0.10473,F28,#REF!) -> -5.392286345
C29: 1.04 | D29: 0.05210402681 | E29: 0.2812344539 | F29: -5.392671618 | G29: =IF(ABS(qq0)<=0.10473,D29,#REF!) -> 0.05210402681 | H29: =IF(ABS(qq0)<=0.10473,E29,#REF!) -> 0.2812344539 | I29: =IF(ABS(qq0)<=0.10473,F29,#REF!) -> -5.392671618
C30: 1.08 | D30: 0.05075162543 | E30: 0.2739411424 | F30: -5.393047028 | G30: =IF(ABS(qq0)<=0.10473,D30,#REF!) -> 0.05075162543 | H30: =IF(ABS(qq0)<=0.10473,E30,#REF!) -> 0.2739411424 | I30: =IF(ABS(qq0)<=0.10473,F30,#REF!) -> -5.393047028
C31: 1.12 | D31: 0.04939922406 | E31: 0.2666473298 | F31: -5.393412575 | G31: =IF(ABS(qq0)<=0.10473,D31,#REF!) -> 0.04939922406 | H31: =IF(ABS(qq0)<=0.10473,E31,#REF!) -> 0.2666473298 | I31: =IF(ABS(qq0)<=0.10473,F31,#REF!) -> -5.393412575
C32: 1.16 | D32: 0.04804682268 | E32: 0.2593530296 | F32: -5.393768257 | G32: =IF(ABS(qq0)<=0.10473,D32,#REF!) -> 0.04804682268 | H32: =IF(ABS(qq0)<=0.10473,E32,#REF!) -> 0.2593530296 | I32: =IF(ABS(qq0)<=0.10473,F32,#REF!) -> -5.393768257
C33: 1.2 | D33: 0.0466944213 | E33: 0.2520582551 | F33: -5.394114073 | G33: =IF(ABS(qq0)<=0.10473,D33,#REF!) -> 0.0466944213 | H33: =IF(ABS(qq0)<=0.10473,E33,#REF!) -> 0.2520582551 | I33: =IF(ABS(qq0)<=0.10473,F33,#REF!) -> -5.394114073
C34: 1.24 | D34: 0.04534201993 | E34: 0.2447630195 | F34: -5.394450024 | G34: =IF(ABS(qq0)<=0.10473,D34,#REF!) -> 0.04534201993 | H34: =IF(ABS(qq0)<=0.10473,E34,#REF!) -> 0.2447630195 | I34: =IF(ABS(qq0)<=0.10473,F34,#REF!) -> -5.394450024
C35: 1.28 | D35: 0.04398961855 | E35: 0.2374673362 | F35: -5.394776109 | G35: =IF(ABS(qq0)<=0.10473,D35,#REF!) -> 0.04398961855 | H35: =IF(ABS(qq0)<=0.10473,E35,#REF!) -> 0.2374673362 | I35: =IF(ABS(qq0)<=0.10473,F35,#REF!) -> -5.394776109
C36: 1.32 | D36: 0.04263721717 | E36: 0.2301712187 | F36: -5.395092326 | G36: =IF(ABS(qq0)<=0.10473,D36,#REF!) -> 0.04263721717 | H36: =IF(ABS(qq0)<=0.10473,E36,#REF!) -> 0.2301712187 | I36: =IF(ABS(qq0)<=0.10473,F36,#REF!) -> -5.395092326
C37: 1.36 | D37: 0.0412848158 | E37: 0.2228746801 | F37: -5.395398676 | G37: =IF(ABS(qq0)<=0.10473,D37,#REF!) -> 0.0412848158 | H37: =IF(ABS(qq0)<=0.10473,E37,#REF!) -> 0.2228746801 | I37: =IF(ABS(qq0)<=0.10473,F37,#REF!) -> -5.395398676
C38: 1.4 | D38: 0.03993241442 | E38: 0.2155777339 | F38: -5.395695158 | G38: =IF(ABS(qq0)<=0.10473,D38,#REF!) -> 0.03993241442 | H38: =IF(ABS(qq0)<=0.10473,E38,#REF!) -> 0.2155777339 | I38: =IF(ABS(qq0)<=0.10473,F38,#REF!) -> -5.395695158
C39: 1.44 | D39: 0.03858001304 | E39: 0.2082803934 | F39: -5.395981771 | G39: =IF(ABS(qq0)<=0.10473,D39,#REF!) -> 0.03858001304 | H39: =IF(ABS(qq0)<=0.10473,E39,#REF!) -> 0.2082803934 | I39: =IF(ABS(qq0)<=0.10473,F39,#REF!) -> -5.395981771
C40: 1.48 | D40: 0.03722761167 | E40: 0.200982672 | F40: -5.396258515 | G40: =IF(ABS(qq0)<=0.10473,D40,#REF!) -> 0.03722761167 | H40: =IF(ABS(qq0)<=0.10473,E40,#REF!) -> 0.200982672 | I40: =IF(ABS(qq0)<=0.10473,F40,#REF!) -> -5.396258515
C41: 1.52 | D41: 0.03587521029 | E41: 0.193684583 | F41: -5.39652539 | G41: =IF(ABS(qq0)<=0.10473,D41,#REF!) -> 0.03587521029 | H41: =IF(ABS(qq0)<=0.10473,E41,#REF!) -> 0.193684583 | I41: =IF(ABS(qq0)<=0.10473,F41,#REF!) -> -5.39652539
C42: 1.56 | D42: 0.03452280891 | E42: 0.1863861397 | F42: -5.396782394 | G42: =IF(ABS(qq0)<=0.10473,D42,#REF!) -> 0.03452280891 | H42: =IF(ABS(qq0)<=0.10473,E42,#REF!) -> 0.1863861397 | I42: =IF(ABS(qq0)<=0.10473,F42,#REF!) -> -5.396782394
C43: 1.6 | D43: 0.03317040754 | E43: 0.1790873556 | F43: -5.397029527 | G43: =IF(ABS(qq0)<=0.10473,D43,#REF!) -> 0.03317040754 | H43: =IF(ABS(qq0)<=0.10473,E43,#REF!) -> 0.1790873556 | I43: =IF(ABS(qq0)<=0.10473,F43,#REF!) -> -5.397029527
C44: 1.64 | D44: 0.03181800616 | E44: 0.1717882439 | F44: -5.39726679 | G44: =IF(ABS(qq0)<=0.10473,D44,#REF!) -> 0.03181800616 | H44: =IF(ABS(qq0)<=0.10473,E44,#REF!) -> 0.1717882439 | I44: =IF(ABS(qq0)<=0.10473,F44,#REF!) -> -5.39726679
C45: 1.68 | D45: 0.03046560478 | E45: 0.1644888179 | F45: -5.397494181 | G45: =IF(ABS(qq0)<=0.10473,D45,#REF!) -> 0.03046560478 | H45: =IF(ABS(qq0)<=0.10473,E45,#REF!) -> 0.1644888179 | I45: =IF(ABS(qq0)<=0.10473,F45,#REF!) -> -5.397494181
C46: 1.72 | D46: 0.02911320341 | E46: 0.1571890912 | F46: -5.397711699 | G46: =IF(ABS(qq0)<=0.10473,D46,#REF!) -> 0.02911320341 | H46: =IF(ABS(qq0)<=0.10473,E46,#REF!) -> 0.1571890912 | I46: =IF(ABS(qq0)<=0.10473,F46,#REF!) -> -5.397711699
C47: 1.76 | D47: 0.02776080203 | E47: 0.1498890769 | F47: -5.397919346 | G47: =IF(ABS(qq0)<=0.10473,D47,#REF!) -> 0.02776080203 | H47: =IF(ABS(qq0)<=0.10473,E47,#REF!) -> 0.1498890769 | I47: =IF(ABS(qq0)<=0.10473,F47,#REF!) -> -5.397919346
C48: 1.8 | D48: 0.02640840065 | E48: 0.1425887885 | F48: -5.39811712 | G48: =IF(ABS(qq0)<=0.10473,D48,#REF!) -> 0.02640840065 | H48: =IF(ABS(qq0)<=0.10473,E48,#REF!) -> 0.1425887885 | I48: =IF(ABS(qq0)<=0.10473,F48,#REF!) -> -5.39811712
C49: 1.84 | D49: 0.02505599928 | E49: 0.1352882393 | F49: -5.39830502 | G49: =IF(ABS(qq0)<=0.10473,D49,#REF!) -> 0.02505599928 | H49: =IF(ABS(qq0)<=0.10473,E49,#REF!) -> 0.1352882393 | I49: =IF(ABS(qq0)<=0.10473,F49,#REF!) -> -5.39830502
C50: 1.88 | D50: 0.0237035979 | E50: 0.1279874427 | F50: -5.398483048 | G50: =IF(ABS(qq0)<=0.10473,D50,#REF!) -> 0.0237035979 | H50: =IF(ABS(qq0)<=0.10473,E50,#REF!) -> 0.1279874427 | I50: =IF(ABS(qq0)<=0.10473,F50,#REF!) -> -5.398483048
C51: 1.92 | D51: 0.02235119653 | E51: 0.120686412 | F51: -5.398651201 | G51: =IF(ABS(qq0)<=0.10473,D51,#REF!) -> 0.02235119653 | H51: =IF(ABS(qq0)<=0.10473,E51,#REF!) -> 0.120686412 | I51: =IF(ABS(qq0)<=0.10473,F51,#REF!) -> -5.398651201
C52: 1.96 | D52: 0.02099879515 | E52: 0.1133851605 | F52: -5.39880948 | G52: =IF(ABS(qq0)<=0.10473,D52,#REF!) -> 0.02099879515 | H52: =IF(ABS(qq0)<=0.10473,E52,#REF!) -> 0.1133851605 | I52: =IF(ABS(qq0)<=0.10473,F52,#REF!) -> -5.39880948
C53: 2 | D53: 0.01964639377 | E53: 0.1060837017 | F53: -5.398957885 | G53: =IF(ABS(qq0)<=0.10473,D53,#REF!) -> 0.01964639377 | H53: =IF(ABS(qq0)<=0.10473,E53,#REF!) -> 0.1060837017 | I53: =IF(ABS(qq0)<=0.10473,F53,#REF!) -> -5.398957885
C54: 2.04 | D54: 0.0182939924 | E54: 0.09878204882 | F54: -5.399096416 | G54: =IF(ABS(qq0)<=0.10473,D54,#REF!) -> 0.0182939924 | H54: =IF(ABS(qq0)<=0.10473,E54,#REF!) -> 0.09878204882 | I54: =IF(ABS(qq0)<=0.10473,F54,#REF!) -> -5.399096416
C55: 2.08 | D55: 0.01694159102 | E55: 0.09148021528 | F55: -5.399225071 | G55: =IF(ABS(qq0)<=0.10473,D55,#REF!) -> 0.01694159102 | H55: =IF(ABS(qq0)<=0.10473,E55,#REF!) -> 0.09148021528 | I55: =IF(ABS(qq0)<=0.10473,F55,#REF!) -> -5.399225071
C56: 2.12 | D56: 0.01558918964 | E56: 0.08417821443 | F56: -5.399343852 | G56: =IF(ABS(qq0)<=0.10473,D56,#REF!) -> 0.01558918964 | H56: =IF(ABS(qq0)<=0.10473,E56,#REF!) -> 0.08417821443 | I56: =IF(ABS(qq0)<=0.10473,F56,#REF!) -> -5.399343852
C57: 2.16 | D57: 0.01423678827 | E57: 0.07687605962 | F57: -5.399452757 | G57: =IF(ABS(qq0)<=0.10473,D57,#REF!) -> 0.01423678827 | H57: =IF(ABS(qq0)<=0.10473,E57,#REF!) -> 0.07687605962 | I57: =IF(ABS(qq0)<=0.10473,F57,#REF!) -> -5.399452757
C58: 2.2 | D58: 0.01288438689 | E58: 0.0695737642 | F58: -5.399551786 | G58: =IF(ABS(qq0)<=0.10473,D58,#REF!) -> 0.01288438689 | H58: =IF(ABS(qq0)<=0.10473,E58,#REF!) -> 0.0695737642 | I58: =IF(ABS(qq0)<=0.10473,F58,#REF!) -> -5.399551786
C59: 2.24 | D59: 0.01153198551 | E59: 0.06227134154 | F59: -5.39964094 | G59: =IF(ABS(qq0)<=0.10473,D59,#REF!) -> 0.01153198551 | H59: =IF(ABS(qq0)<=0.10473,E59,#REF!) -> 0.06227134154 | I59: =IF(ABS(qq0)<=0.10473,F59,#REF!) -> -5.39964094
C60: 2.28 | D60: 0.01017958414 | E60: 0.05496880498 | F60: -5.399720218 | G60: =IF(ABS(qq0)<=0.10473,D60,#REF!) -> 0.01017958414 | H60: =IF(ABS(qq0)<=0.10473,E60,#REF!) -> 0.05496880498 | I60: =IF(ABS(qq0)<=0.10473,F60,#REF!) -> -5.399720218
C61: 2.32 | D61: 0.008827182759 | E61: 0.04766616788 | F61: -5.39978962 | G61: =IF(ABS(qq0)<=0.10473,D61,#REF!) -> 0.008827182759 | H61: =IF(ABS(qq0)<=0.10473,E61,#REF!) -> 0.04766616788 | I61: =IF(ABS(qq0)<=0.10473,F61,#REF!) -> -5.39978962
C62: 2.36 | D62: 0.007474781383 | E62: 0.0403634436 | F62: -5.399849145 | G62: =IF(ABS(qq0)<=0.10473,D62,#REF!) -> 0.007474781383 | H62: =IF(ABS(qq0)<=0.10473,E62,#REF!) -> 0.0403634436 | I62: =IF(ABS(qq0)<=0.10473,F62,#REF!) -> -5.399849145
C63: 2.4 | D63: 0.006122380006 | E63: 0.0330606455 | F63: -5.399898795 | G63: =IF(ABS(qq0)<=0.10473,D63,#REF!) -> 0.006122380006 | H63: =IF(ABS(qq0)<=0.10473,E63,#REF!) -> 0.0330606455 | I63: =IF(ABS(qq0)<=0.10473,F63,#REF!) -> -5.399898795
C64: 2.44 | D64: 0.00476997863 | E64: 0.02575778692 | F64: -5.399938568 | G64: =IF(ABS(qq0)<=0.10473,D64,#REF!) -> 0.00476997863 | H64: =IF(ABS(qq0)<=0.10473,E64,#REF!) -> 0.02575778692 | I64: =IF(ABS(qq0)<=0.10473,F64,#REF!) -> -5.399938568
C65: 2.48 | D65: 0.003417577253 | E65: 0.01845488124 | F65: -5.399968464 | G65: =IF(ABS(qq0)<=0.10473,D65,#REF!) -> 0.003417577253 | H65: =IF(ABS(qq0)<=0.10473,E65,#REF!) -> 0.01845488124 | I65: =IF(ABS(qq0)<=0.10473,F65,#REF!) -> -5.399968464
C66: 2.52 | D66: 0.002065175877 | E66: 0.01115194181 | F66: -5.399988485 | G66: =IF(ABS(qq0)<=0.10473,D66,#REF!) -> 0.002065175877 | H66: =IF(ABS(qq0)<=0.10473,E66,#REF!) -> 0.01115194181 | I66: =IF(ABS(qq0)<=0.10473,F66,#REF!) -> -5.399988485
C67: 2.56 | D67: 0.0007127745001 | E67: =L*SIN(D67) -> 0.003848981975 | F67: =-L*COS(D67) -> -5.399998628 | G67: =IF(ABS(qq0)<=0.10473,D67,#REF!) -> 0.0007127745001 | H67: =IF(ABS(qq0)<=0.10473,E67,#REF!) -> 0.003848981975 | I67: =IF(ABS(qq0)<=0.10473,F67,#REF!) -> -5.399998628
C68: =C67+dt -> 2.6 | D68: -0.0006396268764 | E68: -0.003453984897 | F68: -5.399998895 | G68: =IF(ABS(qq0)<=0.10473,D68,#REF!) -> -0.0006396268764 | H68: =IF(ABS(qq0)<=0.10473,E68,#REF!) -> -0.003453984897 | I68: =IF(ABS(qq0)<=0.10473,F68,#REF!) -> -5.399998895
C69: 2.64 | D69: =IF(qq0>0, IF(AND(D68>D67,D68+dq>qq0), D68-dq, IF( AND(D68>D67, D68+dq<=qq0), D68+dq, IF(AND(D68<D67,D68-dq<-qq0),D68+dq, D68 - dq)) ), IF(AND(D68>D67, D68+dq > -qq0), D68-dq, IF( AND(D68>D67, D68+dq< -qq0), D68+dq, IF(AND(D68<D67,D68-dq<=qq0), D68+dq, D68-dq ) ) ) ) -> -0.001992028253 | E69: -0.01075694545 | F69: -5.399989286 | G69: =IF(ABS(qq0)<=0.10473,D69,#REF!) -> -0.001992028253 | H69: =IF(ABS(qq0)<=0.10473,E69,#REF!) -> -0.01075694545 | I69: =IF(ABS(qq0)<=0.10473,F69,#REF!) -> -5.399989286
C70: 2.68 | D70: -0.00334442963 | E70: -0.01805988633 | F70: -5.3999698 | G70: =IF(ABS(qq0)<=0.10473,D70,#REF!) -> -0.00334442963 | H70: =IF(ABS(qq0)<=0.10473,E70,#REF!) -> -0.01805988633 | I70: =IF(ABS(qq0)<=0.10473,F70,#REF!) -> -5.3999698
C71: 2.72 | D71: -0.004696831006 | E71: -0.02536279418 | F71: -5.399940438 | G71: =IF(ABS(qq0)<=0.10473,D71,#REF!) -> -0.004696831006 | H71: =IF(ABS(qq0)<=0.10473,E71,#REF!) -> -0.02536279418 | I71: =IF(ABS(qq0)<=0.10473,F71,#REF!) -> -5.399940438
C72: 2.76 | D72: -0.006049232383 | E72: -0.03266565564 | F72: -5.399901199 | G72: =IF(ABS(qq0)<=0.10473,D72,#REF!) -> -0.006049232383 | H72: =IF(ABS(qq0)<=0.10473,E72,#REF!) -> -0.03266565564 | I72: =IF(ABS(qq0)<=0.10473,F72,#REF!) -> -5.399901199
C73: 2.8 | D73: -0.007401633759 | E73: -0.03996845736 | F73: -5.399852083 | G73: =IF(ABS(qq0)<=0.10473,D73,#REF!) -> -0.007401633759 | H73: =IF(ABS(qq0)<=0.10473,E73,#REF!) -> -0.03996845736 | I73: =IF(ABS(qq0)<=0.10473,F73,#REF!) -> -5.399852083
C74: 2.84 | D74: -0.008754035136 | E74: -0.04727118597 | F74: -5.399793092 | G74: =IF(ABS(qq0)<=0.10473,D74,#REF!) -> -0.008754035136 | H74: =IF(ABS(qq0)<=0.10473,E74,#REF!) -> -0.04727118597 | I74: =IF(ABS(qq0)<=0.10473,F74,#REF!) -> -5.399793092
C75: 2.88 | D75: -0.01010643651 | E75: -0.05457382813 | F75: -5.399724224 | G75: =IF(ABS(qq0)<=0.10473,D75,#REF!) -> -0.01010643651 | H75: =IF(ABS(qq0)<=0.10473,E75,#REF!) -> -0.05457382813 | I75: =IF(ABS(qq0)<=0.10473,F75,#REF!) -> -5.399724224
C76: 2.92 | D76: -0.01145883789 | E76: -0.06187637047 | F76: -5.39964548 | G76: =IF(ABS(qq0)<=0.10473,D76,#REF!) -> -0.01145883789 | H76: =IF(ABS(qq0)<=0.10473,E76,#REF!) -> -0.06187637047 | I76: =IF(ABS(qq0)<=0.10473,F76,#REF!) -> -5.39964548
C77: 2.96 | D77: -0.01281123927 | E77: -0.06917879964 | F77: -5.399556861 | G77: =IF(ABS(qq0)<=0.10473,D77,#REF!) -> -0.01281123927 | H77: =IF(ABS(qq0)<=0.10473,E77,#REF!) -> -0.06917879964 | I77: =IF(ABS(qq0)<=0.10473,F77,#REF!) -> -5.399556861
C78: 3 | D78: -0.01416364064 | E78: -0.07648110228 | F78: -5.399458366 | G78: =IF(ABS(qq0)<=0.10473,D78,#REF!) -> -0.01416364064 | H78: =IF(ABS(qq0)<=0.10473,E78,#REF!) -> -0.07648110228 | I78: =IF(ABS(qq0)<=0.10473,F78,#REF!) -> -5.399458366
C79: 3.04 | D79: -0.01551604202 | E79: -0.08378326504 | F79: -5.399349995 | G79: =IF(ABS(qq0)<=0.10473,D79,#REF!) -> -0.01551604202 | H79: =IF(ABS(qq0)<=0.10473,E79,#REF!) -> -0.08378326504 | I79: =IF(ABS(qq0)<=0.10473,F79,#REF!) -> -5.399349995
C80: 3.08 | D80: -0.0168684434 | E80: -0.09108527456 | F80: -5.399231748 | G80: =IF(ABS(qq0)<=0.10473,D80,#REF!) -> -0.0168684434 | H80: =IF(ABS(qq0)<=0.10473,E80,#REF!) -> -0.09108527456 | I80: =IF(ABS(qq0)<=0.10473,F80,#REF!) -> -5.399231748
C81: 3.12 | D81: -0.01822084477 | E81: -0.09838711748 | F81: -5.399103627 | G81: =IF(ABS(qq0)<=0.10473,D81,#REF!) -> -0.01822084477 | H81: =IF(ABS(qq0)<=0.10473,E81,#REF!) -> -0.09838711748 | I81: =IF(ABS(qq0)<=0.10473,F81,#REF!) -> -5.399103627
C82: 3.16 | D82: -0.01957324615 | E82: -0.1056887805 | F82: -5.398965631 | G82: =IF(ABS(qq0)<=0.10473,D82,#REF!) -> -0.01957324615 | H82: =IF(ABS(qq0)<=0.10473,E82,#REF!) -> -0.1056887805 | I82: =IF(ABS(qq0)<=0.10473,F82,#REF!) -> -5.398965631
C83: 3.2 | D83: -0.02092564752 | E83: -0.1129902501 | F83: -5.39881776 | G83: =IF(ABS(qq0)<=0.10473,D83,#REF!) -> -0.02092564752 | H83: =IF(ABS(qq0)<=0.10473,E83,#REF!) -> -0.1129902501 | I83: =IF(ABS(qq0)<=0.10473,F83,#REF!) -> -5.39881776
C84: 3.24 | D84: -0.0222780489 | E84: -0.1202915131 | F84: -5.398660014 | G84: =IF(ABS(qq0)<=0.10473,D84,#REF!) -> -0.0222780489 | H84: =IF(ABS(qq0)<=0.10473,E84,#REF!) -> -0.1202915131 | I84: =IF(ABS(qq0)<=0.10473,F84,#REF!) -> -5.398660014
C85: 3.28 | D85: -0.02363045028 | E85: -0.1275925562 | F85: -5.398492395 | G85: =IF(ABS(qq0)<=0.10473,D85,#REF!) -> -0.02363045028 | H85: =IF(ABS(qq0)<=0.10473,E85,#REF!) -> -0.1275925562 | I85: =IF(ABS(qq0)<=0.10473,F85,#REF!) -> -5.398492395
C86: 3.32 | D86: -0.02498285165 | E86: -0.1348933658 | F86: -5.398314902 | G86: =IF(ABS(qq0)<=0.10473,D86,#REF!) -> -0.02498285165 | H86: =IF(ABS(qq0)<=0.10473,E86,#REF!) -> -0.1348933658 | I86: =IF(ABS(qq0)<=0.10473,F86,#REF!) -> -5.398314902
C87: 3.36 | D87: -0.02633525303 | E87: -0.1421939287 | F87: -5.398127535 | G87: =IF(ABS(qq0)<=0.10473,D87,#REF!) -> -0.02633525303 | H87: =IF(ABS(qq0)<=0.10473,E87,#REF!) -> -0.1421939287 | I87: =IF(ABS(qq0)<=0.10473,F87,#REF!) -> -5.398127535
C88: 3.4 | D88: -0.02768765441 | E88: -0.1494942316 | F88: -5.397930295 | G88: =IF(ABS(qq0)<=0.10473,D88,#REF!) -> -0.02768765441 | H88: =IF(ABS(qq0)<=0.10473,E88,#REF!) -> -0.1494942316 | I88: =IF(ABS(qq0)<=0.10473,F88,#REF!) -> -5.397930295
C89: 3.44 | D89: -0.02904005578 | E89: -0.156794261 | F89: -5.397723183 | G89: =IF(ABS(qq0)<=0.10473,D89,#REF!) -> -0.02904005578 | H89: =IF(ABS(qq0)<=0.10473,E89,#REF!) -> -0.156794261 | I89: =IF(ABS(qq0)<=0.10473,F89,#REF!) -> -5.397723183
C90: 3.48 | D90: -0.03039245716 | E90: -0.1640940036 | F90: -5.397506198 | G90: =IF(ABS(qq0)<=0.10473,D90,#REF!) -> -0.03039245716 | H90: =IF(ABS(qq0)<=0.10473,E90,#REF!) -> -0.1640940036 | I90: =IF(ABS(qq0)<=0.10473,F90,#REF!) -> -5.397506198
C91: 3.52 | D91: -0.03174485854 | E91: -0.1713934462 | F91: -5.397279341 | G91: =IF(ABS(qq0)<=0.10473,D91,#REF!) -> -0.03174485854 | H91: =IF(ABS(qq0)<=0.10473,E91,#REF!) -> -0.1713934462 | I91: =IF(ABS(qq0)<=0.10473,F91,#REF!) -> -5.397279341
C92: 3.56 | D92: -0.03309725991 | E92: -0.1786925752 | F92: -5.397042613 | G92: =IF(ABS(qq0)<=0.10473,D92,#REF!) -> -0.03309725991 | H92: =IF(ABS(qq0)<=0.10473,E92,#REF!) -> -0.1786925752 | I92: =IF(ABS(qq0)<=0.10473,F92,#REF!) -> -5.397042613
C93: 3.6 | D93: -0.03444966129 | E93: -0.1859913774 | F93: -5.396796013 | G93: =IF(ABS(qq0)<=0.10473,D93,#REF!) -> -0.03444966129 | H93: =IF(ABS(qq0)<=0.10473,E93,#REF!) -> -0.1859913774 | I93: =IF(ABS(qq0)<=0.10473,F93,#REF!) -> -5.396796013
C94: 3.64 | D94: -0.03580206267 | E94: -0.1932898395 | F94: -5.396539543 | G94: =IF(ABS(qq0)<=0.10473,D94,#REF!) -> -0.03580206267 | H94: =IF(ABS(qq0)<=0.10473,E94,#REF!) -> -0.1932898395 | I94: =IF(ABS(qq0)<=0.10473,F94,#REF!) -> -5.396539543
C95: 3.68 | D95: -0.03715446404 | E95: -0.200587948 | F95: -5.396273202 | G95: =IF(ABS(qq0)<=0.10473,D95,#REF!) -> -0.03715446404 | H95: =IF(ABS(qq0)<=0.10473,E95,#REF!) -> -0.200587948 | I95: =IF(ABS(qq0)<=0.10473,F95,#REF!) -> -5.396273202
C96: 3.72 | D96: -0.03850686542 | E96: -0.2078856896 | F96: -5.395996992 | G96: =IF(ABS(qq0)<=0.10473,D96,#REF!) -> -0.03850686542 | H96: =IF(ABS(qq0)<=0.10473,E96,#REF!) -> -0.2078856896 | I96: =IF(ABS(qq0)<=0.10473,F96,#REF!) -> -5.395996992
C97: 3.76 | D97: -0.0398592668 | E97: -0.2151830511 | F97: -5.395710913 | G97: =IF(ABS(qq0)<=0.10473,D97,#REF!) -> -0.0398592668 | H97: =IF(ABS(qq0)<=0.10473,E97,#REF!) -> -0.2151830511 | I97: =IF(ABS(qq0)<=0.10473,F97,#REF!) -> -5.395710913
C98: 3.8 | D98: -0.04121166817 | E98: -0.2224800189 | F98: -5.395414965 | G98: =IF(ABS(qq0)<=0.10473,D98,#REF!) -> -0.04121166817 | H98: =IF(ABS(qq0)<=0.10473,E98,#REF!) -> -0.2224800189 | I98: =IF(ABS(qq0)<=0.10473,F98,#REF!) -> -5.395414965
C99: 3.84 | D99: -0.04256406955 | E99: -0.2297765799 | F99: -5.395109148 | G99: =IF(ABS(qq0)<=0.10473,D99,#REF!) -> -0.04256406955 | H99: =IF(ABS(qq0)<=0.10473,E99,#REF!) -> -0.2297765799 | I99: =IF(ABS(qq0)<=0.10473,F99,#REF!) -> -5.395109148
C100: 3.88 | D100: -0.04391647093 | E100: -0.2370727205 | F100: -5.394793465 | G100: =IF(ABS(qq0)<=0.10473,D100,#REF!) -> -0.04391647093 | H100: =IF(ABS(qq0)<=0.10473,E100,#REF!) -> -0.2370727205 | I100: =IF(ABS(qq0)<=0.10473,F100,#REF!) -> -5.394793465
C101: 3.92 | D101: -0.0452688723 | E101: -0.2443684276 | F101: -5.394467914 | G101: =IF(ABS(qq0)<=0.10473,D101,#REF!) -> -0.0452688723 | H101: =IF(ABS(qq0)<=0.10473,E101,#REF!) -> -0.2443684276 | I101: =IF(ABS(qq0)<=0.10473,F101,#REF!) -> -5.394467914
C102: 3.96 | D102: -0.04662127368 | E102: -0.2516636878 | F102: -5.394132496 | G102: =IF(ABS(qq0)<=0.10473,D102,#REF!) -> -0.04662127368 | H102: =IF(ABS(qq0)<=0.10473,E102,#REF!) -> -0.2516636878 | I102: =IF(ABS(qq0)<=0.10473,F102,#REF!) -> -5.394132496
C103: 4 | D103: -0.04797367506 | E103: -0.2589584876 | F103: -5.393787213 | G103: =IF(ABS(qq0)<=0.10473,D103,#REF!) -> -0.04797367506 | H103: =IF(ABS(qq0)<=0.10473,E103,#REF!) -> -0.2589584876 | I103: =IF(ABS(qq0)<=0.10473,F103,#REF!) -> -5.393787213
C104: 4.04 | D104: -0.04932607643 | E104: -0.2662528138 | F104: -5.393432065 | G104: =IF(ABS(qq0)<=0.10473,D104,#REF!) -> -0.04932607643 | H104: =IF(ABS(qq0)<=0.10473,E104,#REF!) -> -0.2662528138 | I104: =IF(ABS(qq0)<=0.10473,F104,#REF!) -> -5.393432065
C105: 4.08 | D105: -0.05067847781 | E105: -0.2735466531 | F105: -5.393067052 | G105: =IF(ABS(qq0)<=0.10473,D105,#REF!) -> -0.05067847781 | H105: =IF(ABS(qq0)<=0.10473,E105,#REF!) -> -0.2735466531 | I105: =IF(ABS(qq0)<=0.10473,F105,#REF!) -> -5.393067052
C106: 4.12 | D106: -0.05203087919 | E106: -0.280839992 | F106: -5.392692175 | G106: =IF(ABS(qq0)<=0.10473,D106,#REF!) -> -0.05203087919 | H106: =IF(ABS(qq0)<=0.10473,E106,#REF!) -> -0.280839992 | I106: =IF(ABS(qq0)<=0.10473,F106,#REF!) -> -5.392692175
C107: 4.16 | D107: -0.05338328056 | E107: -0.2881328173 | F107: -5.392307436 | G107: =IF(ABS(qq0)<=0.10473,D107,#REF!) -> -0.05338328056 | H107: =IF(ABS(qq0)<=0.10473,E107,#REF!) -> -0.2881328173 | I107: =IF(ABS(qq0)<=0.10473,F107,#REF!) -> -5.392307436
C108: 4.2 | D108: -0.05473568194 | E108: -0.2954251155 | F108: -5.391912833 | G108: =IF(ABS(qq0)<=0.10473,D108,#REF!) -> -0.05473568194 | H108: =IF(ABS(qq0)<=0.10473,E108,#REF!) -> -0.2954251155 | I108: =IF(ABS(qq0)<=0.10473,F108,#REF!) -> -5.391912833
C109: 4.24 | D109: -0.05608808332 | E109: -0.3027168735 | F109: -5.391508369 | G109: =IF(ABS(qq0)<=0.10473,D109,#REF!) -> -0.05608808332 | H109: =IF(ABS(qq0)<=0.10473,E109,#REF!) -> -0.3027168735 | I109: =IF(ABS(qq0)<=0.10473,F109,#REF!) -> -5.391508369
C110: 4.28 | D110: -0.05744048469 | E110: -0.3100080778 | F110: -5.391094044 | G110: =IF(ABS(qq0)<=0.10473,D110,#REF!) -> -0.05744048469 | H110: =IF(ABS(qq0)<=0.10473,E110,#REF!) -> -0.3100080778 | I110: =IF(ABS(qq0)<=0.10473,F110,#REF!) -> -5.391094044
C111: 4.32 | D111: -0.05879288607 | E111: -0.3172987151 | F111: -5.390669859 | G111: =IF(ABS(qq0)<=0.10473,D111,#REF!) -> -0.05879288607 | H111: =IF(ABS(qq0)<=0.10473,E111,#REF!) -> -0.3172987151 | I111: =IF(ABS(qq0)<=0.10473,F111,#REF!) -> -5.390669859
C112: 4.36 | D112: -0.06014528744 | E112: -0.324588772 | F112: -5.390235814 | G112: =IF(ABS(qq0)<=0.10473,D112,#REF!) -> -0.06014528744 | H112: =IF(ABS(qq0)<=0.10473,E112,#REF!) -> -0.324588772 | I112: =IF(ABS(qq0)<=0.10473,F112,#REF!) -> -5.390235814
C113: 4.4 | D113: -0.06149768882 | E113: -0.3318782353 | F113: -5.38979191 | G113: =IF(ABS(qq0)<=0.10473,D113,#REF!) -> -0.06149768882 | H113: =IF(ABS(qq0)<=0.10473,E113,#REF!) -> -0.3318782353 | I113: =IF(ABS(qq0)<=0.10473,F113,#REF!) -> -5.38979191
C114: 4.44 | D114: -0.0628500902 | E114: -0.3391670916 | F114: -5.389338149 | G114: =IF(ABS(qq0)<=0.10473,D114,#REF!) -> -0.0628500902 | H114: =IF(ABS(qq0)<=0.10473,E114,#REF!) -> -0.3391670916 | I114: =IF(ABS(qq0)<=0.10473,F114,#REF!) -> -5.389338149
C115: 4.48 | D115: -0.06420249157 | E115: -0.3464553275 | F115: -5.388874531 | G115: =IF(ABS(qq0)<=0.10473,D115,#REF!) -> -0.06420249157 | H115: =IF(ABS(qq0)<=0.10473,E115,#REF!) -> -0.3464553275 | I115: =IF(ABS(qq0)<=0.10473,F115,#REF!) -> -5.388874531
C116: 4.52 | D116: -0.06555489295 | E116: -0.3537429298 | F116: -5.388401056 | G116: =IF(ABS(qq0)<=0.10473,D116,#REF!) -> -0.06555489295 | H116: =IF(ABS(qq0)<=0.10473,E116,#REF!) -> -0.3537429298 | I116: =IF(ABS(qq0)<=0.10473,F116,#REF!) -> -5.388401056
C117: 4.56 | D117: -0.06690729433 | E117: -0.3610298851 | F117: -5.387917726 | G117: =IF(ABS(qq0)<=0.10473,D117,#REF!) -> -0.06690729433 | H117: =IF(ABS(qq0)<=0.10473,E117,#REF!) -> -0.3610298851 | I117: =IF(ABS(qq0)<=0.10473,F117,#REF!) -> -5.387917726
C118: 4.6 | D118: -0.0682596957 | E118: -0.36831618 | F118: -5.387424542 | G118: =IF(ABS(qq0)<=0.10473,D118,#REF!) -> -0.0682596957 | H118: =IF(ABS(qq0)<=0.10473,E118,#REF!) -> -0.36831618 | I118: =IF(ABS(qq0)<=0.10473,F118,#REF!) -> -5.387424542
C119: 4.64 | D119: -0.06961209708 | E119: -0.3756018014 | F119: -5.386921504 | G119: =IF(ABS(qq0)<=0.10473,D119,#REF!) -> -0.06961209708 | H119: =IF(ABS(qq0)<=0.10473,E119,#REF!) -> -0.3756018014 | I119: =IF(ABS(qq0)<=0.10473,F119,#REF!) -> -5.386921504
C120: 4.68 | D120: -0.07096449846 | E120: -0.3828867357 | F120: -5.386408613 | G120: =IF(ABS(qq0)<=0.10473,D120,#REF!) -> -0.07096449846 | H120: =IF(ABS(qq0)<=0.10473,E120,#REF!) -> -0.3828867357 | I120: =IF(ABS(qq0)<=0.10473,F120,#REF!) -> -5.386408613
C121: 4.72 | D121: -0.07231689983 | E121: -0.3901709698 | F121: -5.385885871 | G121: =IF(ABS(qq0)<=0.10473,D121,#REF!) -> -0.07231689983 | H121: =IF(ABS(qq0)<=0.10473,E121,#REF!) -> -0.3901709698 | I121: =IF(ABS(qq0)<=0.10473,F121,#REF!) -> -5.385885871
C122: 4.76 | D122: -0.07366930121 | E122: -0.3974544902 | F122: -5.385353278 | G122: =IF(ABS(qq0)<=0.10473,D122,#REF!) -> -0.07366930121 | H122: =IF(ABS(qq0)<=0.10473,E122,#REF!) -> -0.3974544902 | I122: =IF(ABS(qq0)<=0.10473,F122,#REF!) -> -5.385353278
C123: 4.8 | D123: -0.07502170259 | E123: -0.4047372837 | F123: -5.384810835 | G123: =IF(ABS(qq0)<=0.10473,D123,#REF!) -> -0.07502170259 | H123: =IF(ABS(qq0)<=0.10473,E123,#REF!) -> -0.4047372837 | I123: =IF(ABS(qq0)<=0.10473,F123,#REF!) -> -5.384810835
C124: 4.84 | D124: -0.07637410396 | E124: -0.4120193369 | F124: -5.384258544 | G124: =IF(ABS(qq0)<=0.10473,D124,#REF!) -> -0.07637410396 | H124: =IF(ABS(qq0)<=0.10473,E124,#REF!) -> -0.4120193369 | I124: =IF(ABS(qq0)<=0.10473,F124,#REF!) -> -5.384258544
C125: 4.88 | D125: -0.07772650534 | E125: -0.4193006366 | F125: -5.383696405 | G125: =IF(ABS(qq0)<=0.10473,D125,#REF!) -> -0.07772650534 | H125: =IF(ABS(qq0)<=0.10473,E125,#REF!) -> -0.4193006366 | I125: =IF(ABS(qq0)<=0.10473,F125,#REF!) -> -5.383696405
C126: 4.92 | D126: -0.07907890672 | E126: -0.4265811693 | F126: -5.383124419 | G126: =IF(ABS(qq0)<=0.10473,D126,#REF!) -> -0.07907890672 | H126: =IF(ABS(qq0)<=0.10473,E126,#REF!) -> -0.4265811693 | I126: =IF(ABS(qq0)<=0.10473,F126,#REF!) -> -5.383124419
C127: 4.96 | D127: -0.08043130809 | E127: -0.4338609219 | F127: -5.382542587 | G127: =IF(ABS(qq0)<=0.10473,D127,#REF!) -> -0.08043130809 | H127: =IF(ABS(qq0)<=0.10473,E127,#REF!) -> -0.4338609219 | I127: =IF(ABS(qq0)<=0.10473,F127,#REF!) -> -5.382542587
C128: 5 | D128: -0.08178370947 | E128: -0.4411398809 | F128: -5.381950911 | G128: =IF(ABS(qq0)<=0.10473,D128,#REF!) -> -0.08178370947 | H128: =IF(ABS(qq0)<=0.10473,E128,#REF!) -> -0.4411398809 | I128: =IF(ABS(qq0)<=0.10473,F128,#REF!) -> -5.381950911
C129: 5.04 | D129: -0.08313611085 | E129: -0.4484180331 | F129: -5.381349391 | G129: =IF(ABS(qq0)<=0.10473,D129,#REF!) -> -0.08313611085 | H129: =IF(ABS(qq0)<=0.10473,E129,#REF!) -> -0.4484180331 | I129: =IF(ABS(qq0)<=0.10473,F129,#REF!) -> -5.381349391
C130: 5.08 | D130: -0.08448851222 | E130: -0.4556953651 | F130: -5.380738029 | G130: =IF(ABS(qq0)<=0.10473,D130,#REF!) -> -0.08448851222 | H130: =IF(ABS(qq0)<=0.10473,E130,#REF!) -> -0.4556953651 | I130: =IF(ABS(qq0)<=0.10473,F130,#REF!) -> -5.380738029
C131: 5.12 | D131: -0.0858409136 | E131: =L*SIN(D131) -> -0.4629718637 | F131: =-L*COS(D131) -> -5.380116825 | G131: =IF(ABS(qq0)<=0.10473,D131,#REF!) -> -0.0858409136 | H131: =IF(ABS(qq0)<=0.10473,E131,#REF!) -> -0.4629718637 | I131: =IF(ABS(qq0)<=0.10473,F131,#REF!) -> -5.380116825
C132: =C131+dt -> 5.16 | D132: -0.08719331498 | E132: -0.4702475155 | F132: -5.379485782 | G132: =IF(ABS(qq0)<=0.10473,D132,#REF!) -> -0.08719331498 | H132: =IF(ABS(qq0)<=0.10473,E132,#REF!) -> -0.4702475155 | I132: =IF(ABS(qq0)<=0.10473,F132,#REF!) -> -5.379485782
C133: 5.2 | D133: =IF(qq0>0, IF(AND(D132>D131,D132+dq>qq0), D132-dq, IF( AND(D132>D131, D132+dq<=qq0), D132+dq, IF(AND(D132<D131,D132-dq<-qq0),D132+dq, D132 - dq)) ), IF(AND(D132>D131, D132+dq > -qq0), D132-dq, IF( AND(D132>D131, D132+dq< -qq0), D132+dq, IF(AND(D132<D131,D132-dq<=qq0), D132+dq, D132-dq ) ) ) ) -> -0.0858409136 | E133: -0.4629718637 | F133: -5.380116825 | G133: =IF(ABS(qq0)<=0.10473,D133,#REF!) -> -0.0858409136 | H133: =IF(ABS(qq0)<=0.10473,E133,#REF!) -> -0.4629718637 | I133: =IF(ABS(qq0)<=0.10473,F133,#REF!) -> -5.380116825
C134: 5.24 | D134: -0.08448851222 | E134: -0.4556953651 | F134: -5.380738029 | G134: =IF(ABS(qq0)<=0.10473,D134,#REF!) -> -0.08448851222 | H134: =IF(ABS(qq0)<=0.10473,E134,#REF!) -> -0.4556953651 | I134: =IF(ABS(qq0)<=0.10473,F134,#REF!) -> -5.380738029
C135: 5.28 | D135: -0.08313611085 | E135: -0.4484180331 | F135: -5.381349391 | G135: =IF(ABS(qq0)<=0.10473,D135,#REF!) -> -0.08313611085 | H135: =IF(ABS(qq0)<=0.10473,E135,#REF!) -> -0.4484180331 | I135: =IF(ABS(qq0)<=0.10473,F135,#REF!) -> -5.381349391
C136: 5.32 | D136: -0.08178370947 | E136: -0.4411398809 | F136: -5.381950911 | G136: =IF(ABS(qq0)<=0.10473,D136,#REF!) -> -0.08178370947 | H136: =IF(ABS(qq0)<=0.10473,E136,#REF!) -> -0.4411398809 | I136: =IF(ABS(qq0)<=0.10473,F136,#REF!) -> -5.381950911
C137: 5.36 | D137: -0.08043130809 | E137: -0.4338609219 | F137: -5.382542587 | G137: =IF(ABS(qq0)<=0.10473,D137,#REF!) -> -0.08043130809 | H137: =IF(ABS(qq0)<=0.10473,E137,#REF!) -> -0.4338609219 | I137: =IF(ABS(qq0)<=0.10473,F137,#REF!) -> -5.382542587
C138: 5.4 | D138: -0.07907890672 | E138: -0.4265811693 | F138: -5.383124419 | G138: =IF(ABS(qq0)<=0.10473,D138,#REF!) -> -0.07907890672 | H138: =IF(ABS(qq0)<=0.10473,E138,#REF!) -> -0.4265811693 | I138: =IF(ABS(qq0)<=0.10473,F138,#REF!) -> -5.383124419
C139: 5.44 | D139: -0.07772650534 | E139: -0.4193006366 | F139: -5.383696405 | G139: =IF(ABS(qq0)<=0.10473,D139,#REF!) -> -0.07772650534 | H139: =IF(ABS(qq0)<=0.10473,E139,#REF!) -> -0.4193006366 | I139: =IF(ABS(qq0)<=0.10473,F139,#REF!) -> -5.383696405
C140: 5.48 | D140: -0.07637410396 | E140: -0.4120193369 | F140: -5.384258544 | G140: =IF(ABS(qq0)<=0.10473,D140,#REF!) -> -0.07637410396 | H140: =IF(ABS(qq0)<=0.10473,E140,#REF!) -> -0.4120193369 | I140: =IF(ABS(qq0)<=0.10473,F140,#REF!) -> -5.384258544
C141: 5.52 | D141: -0.07502170259 | E141: -0.4047372837 | F141: -5.384810835 | G141: =IF(ABS(qq0)<=0.10473,D141,#REF!) -> -0.07502170259 | H141: =IF(ABS(qq0)<=0.10473,E141,#REF!) -> -0.4047372837 | I141: =IF(ABS(qq0)<=0.10473,F141,#REF!) -> -5.384810835
C142: 5.56 | D142: -0.07366930121 | E142: -0.3974544902 | F142: -5.385353278 | G142: =IF(ABS(qq0)<=0.10473,D142,#REF!) -> -0.07366930121 | H142: =IF(ABS(qq0)<=0.10473,E142,#REF!) -> -0.3974544902 | I142: =IF(ABS(qq0)<=0.10473,F142,#REF!) -> -5.385353278
C143: 5.6 | D143: -0.07231689983 | E143: -0.3901709698 | F143: -5.385885871 | G143: =IF(ABS(qq0)<=0.10473,D143,#REF!) -> -0.07231689983 | H143: =IF(ABS(qq0)<=0.10473,E143,#REF!) -> -0.3901709698 | I143: =IF(ABS(qq0)<=0.10473,F143,#REF!) -> -5.385885871
C144: 5.64 | D144: -0.07096449846 | E144: -0.3828867357 | F144: -5.386408613 | G144: =IF(ABS(qq0)<=0.10473,D144,#REF!) -> -0.07096449846 | H144: =IF(ABS(qq0)<=0.10473,E144,#REF!) -> -0.3828867357 | I144: =IF(ABS(qq0)<=0.10473,F144,#REF!) -> -5.386408613
C145: 5.68 | D145: -0.06961209708 | E145: -0.3756018014 | F145: -5.386921504 | G145: =IF(ABS(qq0)<=0.10473,D145,#REF!) -> -0.06961209708 | H145: =IF(ABS(qq0)<=0.10473,E145,#REF!) -> -0.3756018014 | I145: =IF(ABS(qq0)<=0.10473,F145,#REF!) -> -5.386921504
C146: 5.72 | D146: -0.0682596957 | E146: -0.36831618 | F146: -5.387424542 | G146: =IF(ABS(qq0)<=0.10473,D146,#REF!) -> -0.0682596957 | H146: =IF(ABS(qq0)<=0.10473,E146,#REF!) -> -0.36831618 | I146: =IF(ABS(qq0)<=0.10473,F146,#REF!) -> -5.387424542
C147: 5.76 | D147: -0.06690729433 | E147: -0.3610298851 | F147: -5.387917726 | G147: =IF(ABS(qq0)<=0.10473,D147,#REF!) -> -0.06690729433 | H147: =IF(ABS(qq0)<=0.10473,E147,#REF!) -> -0.3610298851 | I147: =IF(ABS(qq0)<=0.10473,F147,#REF!) -> -5.387917726
C148: 5.8 | D148: -0.06555489295 | E148: -0.3537429298 | F148: -5.388401056 | G148: =IF(ABS(qq0)<=0.10473,D148,#REF!) -> -0.06555489295 | H148: =IF(ABS(qq0)<=0.10473,E148,#REF!) -> -0.3537429298 | I148: =IF(ABS(qq0)<=0.10473,F148,#REF!) -> -5.388401056
C149: 5.84 | D149: -0.06420249157 | E149: -0.3464553275 | F149: -5.388874531 | G149: =IF(ABS(qq0)<=0.10473,D149,#REF!) -> -0.06420249157 | H149: =IF(ABS(qq0)<=0.10473,E149,#REF!) -> -0.3464553275 | I149: =IF(ABS(qq0)<=0.10473,F149,#REF!) -> -5.388874531
C150: 5.88 | D150: -0.0628500902 | E150: -0.3391670916 | F150: -5.389338149 | G150: =IF(ABS(qq0)<=0.10473,D150,#REF!) -> -0.0628500902 | H150: =IF(ABS(qq0)<=0.10473,E150,#REF!) -> -0.3391670916 | I150: =IF(ABS(qq0)<=0.10473,F150,#REF!) -> -5.389338149
C151: 5.92 | D151: -0.06149768882 | E151: -0.3318782353 | F151: -5.38979191 | G151: =IF(ABS(qq0)<=0.10473,D151,#REF!) -> -0.06149768882 | H151: =IF(ABS(qq0)<=0.10473,E151,#REF!) -> -0.3318782353 | I151: =IF(ABS(qq0)<=0.10473,F151,#REF!) -> -5.38979191
C152: 5.96 | D152: -0.06014528744 | E152: -0.324588772 | F152: -5.390235814 | G152: =IF(ABS(qq0)<=0.10473,D152,#REF!) -> -0.06014528744 | H152: =IF(ABS(qq0)<=0.10473,E152,#REF!) -> -0.324588772 | I152: =IF(ABS(qq0)<=0.10473,F152,#REF!) -> -5.390235814
C153: 6 | D153: -0.05879288607 | E153: -0.3172987151 | F153: -5.390669859 | G153: =IF(ABS(qq0)<=0.10473,D153,#REF!) -> -0.05879288607 | H153: =IF(ABS(qq0)<=0.10473,E153,#REF!) -> -0.3172987151 | I153: =IF(ABS(qq0)<=0.10473,F153,#REF!) -> -5.390669859
C154: 6.04 | D154: -0.05744048469 | E154: -0.3100080778 | F154: -5.391094044 | G154: =IF(ABS(qq0)<=0.10473,D154,#REF!) -> -0.05744048469 | H154: =IF(ABS(qq0)<=0.10473,E154,#REF!) -> -0.3100080778 | I154: =IF(ABS(qq0)<=0.10473,F154,#REF!) -> -5.391094044
C155: 6.08 | D155: -0.05608808332 | E155: -0.3027168735 | F155: -5.391508369 | G155: =IF(ABS(qq0)<=0.10473,D155,#REF!) -> -0.05608808332 | H155: =IF(ABS(qq0)<=0.10473,E155,#REF!) -> -0.3027168735 | I155: =IF(ABS(qq0)<=0.10473,F155,#REF!) -> -5.391508369
C156: 6.12 | D156: -0.05473568194 | E156: -0.2954251155 | F156: -5.391912833 | G156: =IF(ABS(qq0)<=0.10473,D156,#REF!) -> -0.05473568194 | H156: =IF(ABS(qq0)<=0.10473,E156,#REF!) -> -0.2954251155 | I156: =IF(ABS(qq0)<=0.10473,F156,#REF!) -> -5.391912833
C157: 6.16 | D157: -0.05338328056 | E157: -0.2881328173 | F157: -5.392307436 | G157: =IF(ABS(qq0)<=0.10473,D157,#REF!) -> -0.05338328056 | H157: =IF(ABS(qq0)<=0.10473,E157,#REF!) -> -0.2881328173 | I157: =IF(ABS(qq0)<=0.10473,F157,#REF!) -> -5.392307436
C158: 6.2 | D158: -0.05203087919 | E158: -0.280839992 | F158: -5.392692175 | G158: =IF(ABS(qq0)<=0.10473,D158,#REF!) -> -0.05203087919 | H158: =IF(ABS(qq0)<=0.10473,E158,#REF!) -> -0.280839992 | I158: =IF(ABS(qq0)<=0.10473,F158,#REF!) -> -5.392692175
C159: 6.24 | D159: -0.05067847781 | E159: -0.2735466531 | F159: -5.393067052 | G159: =IF(ABS(qq0)<=0.10473,D159,#REF!) -> -0.05067847781 | H159: =IF(ABS(qq0)<=0.10473,E159,#REF!) -> -0.2735466531 | I159: =IF(ABS(qq0)<=0.10473,F159,#REF!) -> -5.393067052
C160: 6.28 | D160: -0.04932607643 | E160: -0.2662528138 | F160: -5.393432065 | G160: =IF(ABS(qq0)<=0.10473,D160,#REF!) -> -0.04932607643 | H160: =IF(ABS(qq0)<=0.10473,E160,#REF!) -> -0.2662528138 | I160: =IF(ABS(qq0)<=0.10473,F160,#REF!) -> -5.393432065
C161: 6.32 | D161: -0.04797367506 | E161: -0.2589584876 | F161: -5.393787213 | G161: =IF(ABS(qq0)<=0.10473,D161,#REF!) -> -0.04797367506 | H161: =IF(ABS(qq0)<=0.10473,E161,#REF!) -> -0.2589584876 | I161: =IF(ABS(qq0)<=0.10473,F161,#REF!) -> -5.393787213
C162: 6.36 | D162: -0.04662127368 | E162: -0.2516636878 | F162: -5.394132496 | G162: =IF(ABS(qq0)<=0.10473,D162,#REF!) -> -0.04662127368 | H162: =IF(ABS(qq0)<=0.10473,E162,#REF!) -> -0.2516636878 | I162: =IF(ABS(qq0)<=0.10473,F162,#REF!) -> -5.394132496
C163: 6.4 | D163: -0.0452688723 | E163: -0.2443684276 | F163: -5.394467914 | G163: =IF(ABS(qq0)<=0.10473,D163,#REF!) -> -0.0452688723 | H163: =IF(ABS(qq0)<=0.10473,E163,#REF!) -> -0.2443684276 | I163: =IF(ABS(qq0)<=0.10473,F163,#REF!) -> -5.394467914
C164: 6.44 | D164: -0.04391647093 | E164: -0.2370727205 | F164: -5.394793465 | G164: =IF(ABS(qq0)<=0.10473,D164,#REF!) -> -0.04391647093 | H164: =IF(ABS(qq0)<=0.10473,E164,#REF!) -> -0.2370727205 | I164: =IF(ABS(qq0)<=0.10473,F164,#REF!) -> -5.394793465
C165: 6.48 | D165: -0.04256406955 | E165: -0.2297765799 | F165: -5.395109148 | G165: =IF(ABS(qq0)<=0.10473,D165,#REF!) -> -0.04256406955 | H165: =IF(ABS(qq0)<=0.10473,E165,#REF!) -> -0.2297765799 | I165: =IF(ABS(qq0)<=0.10473,F165,#REF!) -> -5.395109148
C166: 6.52 | D166: -0.04121166817 | E166: -0.2224800189 | F166: -5.395414965 | G166: =IF(ABS(qq0)<=0.10473,D166,#REF!) -> -0.04121166817 | H166: =IF(ABS(qq0)<=0.10473,E166,#REF!) -> -0.2224800189 | I166: =IF(ABS(qq0)<=0.10473,F166,#REF!) -> -5.395414965
C167: 6.56 | D167: -0.0398592668 | E167: -0.2151830511 | F167: -5.395710913 | G167: =IF(ABS(qq0)<=0.10473,D167,#REF!) -> -0.0398592668 | H167: =IF(ABS(qq0)<=0.10473,E167,#REF!) -> -0.2151830511 | I167: =IF(ABS(qq0)<=0.10473,F167,#REF!) -> -5.395710913
C168: 6.6 | D168: -0.03850686542 | E168: -0.2078856896 | F168: -5.395996992 | G168: =IF(ABS(qq0)<=0.10473,D168,#REF!) -> -0.03850686542 | H168: =IF(ABS(qq0)<=0.10473,E168,#REF!) -> -0.2078856896 | I168: =IF(ABS(qq0)<=0.10473,F168,#REF!) -> -5.395996992
C169: 6.64 | D169: -0.03715446404 | E169: -0.200587948 | F169: -5.396273202 | G169: =IF(ABS(qq0)<=0.10473,D169,#REF!) -> -0.03715446404 | H169: =IF(ABS(qq0)<=0.10473,E169,#REF!) -> -0.200587948 | I169: =IF(ABS(qq0)<=0.10473,F169,#REF!) -> -5.396273202
C170: 6.68 | D170: -0.03580206267 | E170: -0.1932898395 | F170: -5.396539543 | G170: =IF(ABS(qq0)<=0.10473,D170,#REF!) -> -0.03580206267 | H170: =IF(ABS(qq0)<=0.10473,E170,#REF!) -> -0.1932898395 | I170: =IF(ABS(qq0)<=0.10473,F170,#REF!) -> -5.396539543
C171: 6.72 | D171: -0.03444966129 | E171: -0.1859913774 | F171: -5.396796013 | G171: =IF(ABS(qq0)<=0.10473,D171,#REF!) -> -0.03444966129 | H171: =IF(ABS(qq0)<=0.10473,E171,#REF!) -> -0.1859913774 | I171: =IF(ABS(qq0)<=0.10473,F171,#REF!) -> -5.396796013
C172: 6.76 | D172: -0.03309725991 | E172: -0.1786925752 | F172: -5.397042613 | G172: =IF(ABS(qq0)<=0.10473,D172,#REF!) -> -0.03309725991 | H172: =IF(ABS(qq0)<=0.10473,E172,#REF!) -> -0.1786925752 | I172: =IF(ABS(qq0)<=0.10473,F172,#REF!) -> -5.397042613
C173: 6.8 | D173: -0.03174485854 | E173: -0.1713934462 | F173: -5.397279341 | G173: =IF(ABS(qq0)<=0.10473,D173,#REF!) -> -0.03174485854 | H173: =IF(ABS(qq0)<=0.10473,E173,#REF!) -> -0.1713934462 | I173: =IF(ABS(qq0)<=0.10473,F173,#REF!) -> -5.397279341
C174: 6.84 | D174: -0.03039245716 | E174: -0.1640940036 | F174: -5.397506198 | G174: =IF(ABS(qq0)<=0.10473,D174,#REF!) -> -0.03039245716 | H174: =IF(ABS(qq0)<=0.10473,E174,#REF!) -> -0.1640940036 | I174: =IF(ABS(qq0)<=0.10473,F174,#REF!) -> -5.397506198
C175: 6.88 | D175: -0.02904005578 | E175: -0.156794261 | F175: -5.397723183 | G175: =IF(ABS(qq0)<=0.10473,D175,#REF!) -> -0.02904005578 | H175: =IF(ABS(qq0)<=0.10473,E175,#REF!) -> -0.156794261 | I175: =IF(ABS(qq0)<=0.10473,F175,#REF!) -> -5.397723183
C176: 6.92 | D176: -0.02768765441 | E176: -0.1494942316 | F176: -5.397930295 | G176: =IF(ABS(qq0)<=0.10473,D176,#REF!) -> -0.02768765441 | H176: =IF(ABS(qq0)<=0.10473,E176,#REF!) -> -0.1494942316 | I176: =IF(ABS(qq0)<=0.10473,F176,#REF!) -> -5.397930295
C177: 6.96 | D177: -0.02633525303 | E177: -0.1421939287 | F177: -5.398127535 | G177: =IF(ABS(qq0)<=0.10473,D177,#REF!) -> -0.02633525303 | H177: =IF(ABS(qq0)<=0.10473,E177,#REF!) -> -0.1421939287 | I177: =IF(ABS(qq0)<=0.10473,F177,#REF!) -> -5.398127535
C178: 7 | D178: -0.02498285165 | E178: -0.1348933658 | F178: -5.398314902 | G178: =IF(ABS(qq0)<=0.10473,D178,#REF!) -> -0.02498285165 | H178: =IF(ABS(qq0)<=0.10473,E178,#REF!) -> -0.1348933658 | I178: =IF(ABS(qq0)<=0.10473,F178,#REF!) -> -5.398314902
C179: 7.04 | D179: -0.02363045028 | E179: -0.1275925562 | F179: -5.398492395 | G179: =IF(ABS(qq0)<=0.10473,D179,#REF!) -> -0.02363045028 | H179: =IF(ABS(qq0)<=0.10473,E179,#REF!) -> -0.1275925562 | I179: =IF(ABS(qq0)<=0.10473,F179,#REF!) -> -5.398492395
C180: 7.08 | D180: -0.0222780489 | E180: -0.1202915131 | F180: -5.398660014 | G180: =IF(ABS(qq0)<=0.10473,D180,#REF!) -> -0.0222780489 | H180: =IF(ABS(qq0)<=0.10473,E180,#REF!) -> -0.1202915131 | I180: =IF(ABS(qq0)<=0.10473,F180,#REF!) -> -5.398660014
C181: 7.12 | D181: -0.02092564752 | E181: -0.1129902501 | F181: -5.39881776 | G181: =IF(ABS(qq0)<=0.10473,D181,#REF!) -> -0.02092564752 | H181: =IF(ABS(qq0)<=0.10473,E181,#REF!) -> -0.1129902501 | I181: =IF(ABS(qq0)<=0.10473,F181,#REF!) -> -5.39881776
C182: 7.16 | D182: -0.01957324615 | E182: -0.1056887805 | F182: -5.398965631 | G182: =IF(ABS(qq0)<=0.10473,D182,#REF!) -> -0.01957324615 | H182: =IF(ABS(qq0)<=0.10473,E182,#REF!) -> -0.1056887805 | I182: =IF(ABS(qq0)<=0.10473,F182,#REF!) -> -5.398965631
C183: 7.2 | D183: -0.01822084477 | E183: -0.09838711748 | F183: -5.399103627 | G183: =IF(ABS(qq0)<=0.10473,D183,#REF!) -> -0.01822084477 | H183: =IF(ABS(qq0)<=0.10473,E183,#REF!) -> -0.09838711748 | I183: =IF(ABS(qq0)<=0.10473,F183,#REF!) -> -5.399103627
C184: 7.24 | D184: -0.0168684434 | E184: -0.09108527456 | F184: -5.399231748 | G184: =IF(ABS(qq0)<=0.10473,D184,#REF!) -> -0.0168684434 | H184: =IF(ABS(qq0)<=0.10473,E184,#REF!) -> -0.09108527456 | I184: =IF(ABS(qq0)<=0.10473,F184,#REF!) -> -5.399231748
C185: 7.28 | D185: -0.01551604202 | E185: -0.08378326504 | F185: -5.399349995 | G185: =IF(ABS(qq0)<=0.10473,D185,#REF!) -> -0.01551604202 | H185: =IF(ABS(qq0)<=0.10473,E185,#REF!) -> -0.08378326504 | I185: =IF(ABS(qq0)<=0.10473,F185,#REF!) -> -5.399349995
C186: 7.32 | D186: -0.01416364064 | E186: -0.07648110228 | F186: -5.399458366 | G186: =IF(ABS(qq0)<=0.10473,D186,#REF!) -> -0.01416364064 | H186: =IF(ABS(qq0)<=0.10473,E186,#REF!) -> -0.07648110228 | I186: =IF(ABS(qq0)<=0.10473,F186,#REF!) -> -5.399458366
C187: 7.36 | D187: -0.01281123927 | E187: -0.06917879964 | F187: -5.399556861 | G187: =IF(ABS(qq0)<=0.10473,D187,#REF!) -> -0.01281123927 | H187: =IF(ABS(qq0)<=0.10473,E187,#REF!) -> -0.06917879964 | I187: =IF(ABS(qq0)<=0.10473,F187,#REF!) -> -5.399556861
C188: 7.4 | D188: -0.01145883789 | E188: -0.06187637047 | F188: -5.39964548 | G188: =IF(ABS(qq0)<=0.10473,D188,#REF!) -> -0.01145883789 | H188: =IF(ABS(qq0)<=0.10473,E188,#REF!) -> -0.06187637047 | I188: =IF(ABS(qq0)<=0.10473,F188,#REF!) -> -5.39964548
C189: 7.44 | D189: -0.01010643651 | E189: -0.05457382813 | F189: -5.399724224 | G189: =IF(ABS(qq0)<=0.10473,D189,#REF!) -> -0.01010643651 | H189: =IF(ABS(qq0)<=0.10473,E189,#REF!) -> -0.05457382813 | I189: =IF(ABS(qq0)<=0.10473,F189,#REF!) -> -5.399724224
C190: 7.48 | D190: -0.008754035136 | E190: -0.04727118597 | F190: -5.399793092 | G190: =IF(ABS(qq0)<=0.10473,D190,#REF!) -> -0.008754035136 | H190: =IF(ABS(qq0)<=0.10473,E190,#REF!) -> -0.04727118597 | I190: =IF(ABS(qq0)<=0.10473,F190,#REF!) -> -5.399793092
C191: 7.52 | D191: -0.007401633759 | E191: -0.03996845736 | F191: -5.399852083 | G191: =IF(ABS(qq0)<=0.10473,D191,#REF!) -> -0.007401633759 | H191: =IF(ABS(qq0)<=0.10473,E191,#REF!) -> -0.03996845736 | I191: =IF(ABS(qq0)<=0.10473,F191,#REF!) -> -5.399852083
C192: 7.56 | D192: -0.006049232383 | E192: -0.03266565564 | F192: -5.399901199 | G192: =IF(ABS(qq0)<=0.10473,D192,#REF!) -> -0.006049232383 | H192: =IF(ABS(qq0)<=0.10473,E192,#REF!) -> -0.03266565564 | I192: =IF(ABS(qq0)<=0.10473,F192,#REF!) -> -5.399901199
C193: 7.6 | D193: -0.004696831006 | E193: -0.02536279418 | F193: -5.399940438 | G193: =IF(ABS(qq0)<=0.10473,D193,#REF!) -> -0.004696831006 | H193: =IF(ABS(qq0)<=0.10473,E193,#REF!) -> -0.02536279418 | I193: =IF(ABS(qq0)<=0.10473,F193,#REF!) -> -5.399940438
C194: 7.64 | D194: -0.00334442963 | E194: -0.01805988633 | F194: -5.3999698 | G194: =IF(ABS(qq0)<=0.10473,D194,#REF!) -> -0.00334442963 | H194: =IF(ABS(qq0)<=0.10473,E194,#REF!) -> -0.01805988633 | I194: =IF(ABS(qq0)<=0.10473,F194,#REF!) -> -5.3999698
C195: 7.68 | D195: -0.001992028253 | E195: =L*SIN(D195) -> -0.01075694545 | F195: =-L*COS(D195) -> -5.399989286 | G195: =IF(ABS(qq0)<=0.10473,D195,#REF!) -> -0.001992028253 | H195: =IF(ABS(qq0)<=0.10473,E195,#REF!) -> -0.01075694545 | I195: =IF(ABS(qq0)<=0.10473,F195,#REF!) -> -5.399989286
C196: =C195+dt -> 7.72 | D196: -0.0006396268764 | E196: -0.003453984897 | F196: -5.399998895 | G196: =IF(ABS(qq0)<=0.10473,D196,#REF!) -> -0.0006396268764 | H196: =IF(ABS(qq0)<=0.10473,E196,#REF!) -> -0.003453984897 | I196: =IF(ABS(qq0)<=0.10473,F196,#REF!) -> -5.399998895
C197: 7.76 | D197: =IF(qq0>0, IF(AND(D196>D195,D196+dq>qq0), D196-dq, IF( AND(D196>D195, D196+dq<=qq0), D196+dq, IF(AND(D196<D195,D196-dq<-qq0),D196+dq, D196 - dq)) ), IF(AND(D196>D195, D196+dq > -qq0), D196-dq, IF( AND(D196>D195, D196+dq< -qq0), D196+dq, IF(AND(D196<D195,D196-dq<=qq0), D196+dq, D196-dq ) ) ) ) -> 0.0007127745001 | E197: 0.003848981975 | F197: -5.399998628 | G197: =IF(ABS(qq0)<=0.10473,D197,#REF!) -> 0.0007127745001 | H197: =IF(ABS(qq0)<=0.10473,E197,#REF!) -> 0.003848981975 | I197: =IF(ABS(qq0)<=0.10473,F197,#REF!) -> -5.399998628
C198: 7.8 | D198: 0.002065175877 | E198: 0.01115194181 | F198: -5.399988485 | G198: =IF(ABS(qq0)<=0.10473,D198,#REF!) -> 0.002065175877 | H198: =IF(ABS(qq0)<=0.10473,E198,#REF!) -> 0.01115194181 | I198: =IF(ABS(qq0)<=0.10473,F198,#REF!) -> -5.399988485
C199: 7.84 | D199: 0.003417577253 | E199: 0.01845488124 | F199: -5.399968464 | G199: =IF(ABS(qq0)<=0.10473,D199,#REF!) -> 0.003417577253 | H199: =IF(ABS(qq0)<=0.10473,E199,#REF!) -> 0.01845488124 | I199: =IF(ABS(qq0)<=0.10473,F199,#REF!) -> -5.399968464
C200: 7.88 | D200: 0.00476997863 | E200: 0.02575778692 | F200: -5.399938568 | G200: =IF(ABS(qq0)<=0.10473,D200,#REF!) -> 0.00476997863 | H200: =IF(ABS(qq0)<=0.10473,E200,#REF!) -> 0.02575778692 | I200: =IF(ABS(qq0)<=0.10473,F200,#REF!) -> -5.399938568
... 303 more rows

Sheet Sheet3
